bitfinex/quotes_ETHUSD_20211001
["timestamp","ask_amount","ask_price","bid_price","bid_amount"]
[1633123143705,4.85361549,3306.6,3305.9,4.53855]
[1633123143909,4.71873,3306.6,3306.1,0.15056008]
[1633123144105,0.183,3306.6,3306.1,0.15056008]
[1633123145107,4.85357935,3306.6,3305.7,0.003]
[1633123145508,7.48185576,3306.6,3305.7,0.003]
[1633123145707,7.48185576,3306.6,3305.4,0.006]
[1633123145907,7.48185576,3306.6,3305.3,0.006]
[1633123146308,4.53722,3305.9,3305.3,0.006]
[1633123146511,0.183,3305.8,3305.3,0.006]
[1633123147306,1.0523816,3305.8,3305.3,0.006]
[1633123147707,1.0523816,3305.8,3305.1,1.01862585]
[1633123147908,0.183,3305.8,3305.1,1.01862585]
[1633123148111,0.183,3305.8,3305.5,0.076823]
[1633123148309,0.183,3306.1,3305.5,0.076823]
[1633123148507,0.183,3306.1,3305.6,0.003]
[1633123148908,0.183,3306.1,3305.8,0.73815551]
[1633123149113,0.183,3306.1,3305.8,5.27380551]
[1633123149307,0.183,3306.1,3305.9,0.003]
[1633123149507,0.183,3306.1,3305.9,0.15463429]
[1633123149908,0.183,3306.1,3306.0,0.003]
[1633123150307,0.183,3306.1,3306.0,4.53832]
[1633123150719,0.31776485,3306.1,3306.0,4.53832]
[1633123151011,0.183,3306.9,3306.7,2.37730527]
[1633123151212,0.183,3306.9,3306.7,3.58180527]
[1633123151614,0.003,3307.0,3306.7,4.65371172]
[1633123151810,0.003,3307.0,3306.7,5.49258518]
[1633123152010,0.003,3307.0,3306.8,4.53438]
[1633123152211,0.136,3307.3,3306.8,4.53438]
[1633123152412,0.136,3307.3,3306.7,3.21617873]
[1633123153013,0.136,3307.3,3306.7,2.37730527]
[1633123153212,4.67076,3307.3,3306.7,2.37730527]
[1633123153816,0.136,3307.3,3306.7,2.37730527]
[1633123154613,0.136,3307.3,3306.9,0.7545101]
[1633123155413,4.6708,3307.3,3306.9,0.7545101]
[1633123155616,4.6708,3307.3,3306.8,0.21771287]
[1633123156215,4.73843644,3307.3,3306.7,2.37730527]
[1633123156615,0.20363644,3307.3,3306.7,2.37730527]
[1633123156822,4.53485,3307.2,3306.7,2.37730527]
[1633123157216,0.183,3307.1,3306.7,2.37730527]
[1633123157614,3.2066041,3307.1,3306.7,2.37730527]
[1633123157815,4.53541,3306.9,3306.7,2.37730527]
[1633123158616,0.183,3306.8,3306.7,2.37730527]
[1633123160018,0.183,3306.8,3306.7,2.37812621]
[1633123160616,0.183,3306.8,3306.7,2.59593748]
[1633123161617,0.25055197,3306.8,3306.7,2.37812621]
[1633123162125,0.003,3307.5,3306.7,6.27747077]
[1633123162317,0.003,3307.5,3307.1,0.99535029]
[1633123163117,0.003,3307.5,3307.0,0.074468]
[1633123163517,0.003,3307.5,3306.9,4.53425]
[1633123163718,0.183,3307.4,3306.7,2.37812621]
[1633123163918,0.72683182,3307.0,3306.7,2.37812621]
[1633123164118,0.183,3306.9,3306.7,2.37812621]
[1633123164920,0.183,3306.9,3306.8,1.16612151]
[1633123165320,0.183,3306.9,3306.8,2.094158]
[1633123165920,0.183,3306.9,3306.8,1.694158]
[1633123167327,0.21681239,3306.9,3306.8,1.694158]
[1633123168124,0.21681239,3306.9,3306.8,0.92803649]
[1633123168525,0.21681239,3306.9,3306.7,5.40111991]
[1633123169125,0.21681239,3306.9,3306.7,6.51635953]
[1633123169323,0.21681239,3306.9,3306.7,5.40111991]
[1633123169524,0.21681239,3306.9,3306.8,0.77899031]
[1633123169724,0.21681239,3306.9,3306.8,1.33138896]
[1633123170524,0.21681239,3306.9,3306.8,0.55239865]
[1633123171325,0.183,3306.9,3306.8,0.55239865]
[1633123171524,0.183,3306.9,3306.8,1.35583062]
[1633123172788,0.21681253,3306.9,3306.8,0.55239865]
[1633123173724,0.21681253,3306.9,3306.8,2.41958725]
[1633123174324,0.21681253,3306.9,3306.8,3.71358725]
[1633123176127,0.21681253,3306.9,3306.8,2.8382449]
[1633123176328,0.21681253,3306.9,3306.8,1.84639865]
[1633123176928,0.183,3306.9,3306.8,1.84639865]
[1633123177126,0.183,3306.9,3306.8,0.55239865]
[1633123177329,0.133,3306.9,3306.8,1.84639865]
[1633123178329,0.16681267,3306.9,3306.8,2.64152429]
[1633123179629,0.16681267,3306.9,3306.8,1.34752429]
[1633123180831,0.11681267,3306.9,3306.8,0.55239865]
[1633123182032,0.11681267,3306.9,3306.8,0.50239865]
[1633123182233,0.11681267,3306.9,3306.8,1.22185174]
[1633123182632,0.083,3306.9,3306.8,1.22185174]
[1633123183632,0.083,3306.9,3306.8,2.29538102]
[1633123183834,0.11681281,3306.9,3306.8,2.29538102]
[1633123184634,0.11681281,3306.9,3306.8,3.58938102]
[1633123185638,0.03381281,3306.9,3306.8,3.58938102]
[1633123186236,0.03381281,3306.9,3306.8,2.86992793]
[1633123186842,0.03381281,3306.9,3306.8,0.50239865]
[1633123187898,0.183,3307.0,3306.8,0.50239865]
[1633123188104,0.183,3307.0,3306.9,0.25153805]
[1633123188298,0.183,3307.0,3306.9,0.31401805]
[1633123189098,0.183,3307.0,3306.9,0.06248]
[1633123189298,0.21683712,3307.0,3306.9,0.06248]
[1633123189499,0.21683712,3307.0,3306.7,6.4223936]
[1633123190704,0.16683712,3307.0,3306.7,5.40029897]
[1633123191500,0.16683712,3307.0,3306.8,4.53425]
[1633123191702,0.16683712,3307.0,3306.9,1.13207623]
[1633123191901,0.16683712,3307.0,3306.8,4.53425]
[1633123193501,0.133,3307.0,3306.9,0.25152165]
[1633123194704,0.16683726,3307.0,3306.7,8.42292897]
[1633123195304,0.16683726,3307.0,3306.9,4.53394]
[1633123195505,0.16683726,3307.0,3306.7,5.40029897]
[1633123196908,3.18999726,3307.0,3306.7,5.40029897]
[1633123197108,3.18999726,3307.0,3306.7,6.17153468]
[1633123198709,3.18999726,3307.0,3306.7,5.40029897]
[1633123200510,3.18999726,3307.0,3306.7,2.37730527]
[1633123202314,4.53541,3306.9,3306.7,2.37730527]
[1633123202512,4.71841,3306.9,3306.7,2.37730527]
[1633123202713,0.183,3306.9,3306.7,2.37730527]
[1633123202913,0.183,3306.9,3306.7,5.40053007]
[1633123203716,0.183,3306.9,3306.8,1.16654977]
[1633123205316,3.05699726,3307.0,3306.8,1.16654977]
[1633123207920,0.03383726,3307.0,3306.8,1.16654977]
[1633123208720,0.03383726,3307.0,3306.8,5.70073977]
[1633123209522,0.0083182,3306.9,3306.8,5.70073977]
[1633123209920,0.0083182,3306.9,3306.8,1.16654977]
[1633123210120,0.0083182,3306.9,3306.7,5.40053007]
[1633123211427,0.1913182,3306.9,3306.7,5.40053007]
[1633123211824,0.1913182,3306.9,3306.8,0.74906906]
[1633123212021,0.1913182,3306.9,3306.7,5.40053007]
[1633123212221,0.1913182,3306.9,3306.8,0.55298966]
[1633123215125,0.1913182,3306.9,3306.8,1.74074776]
[1633123217127,0.1913182,3306.9,3306.8,0.55298966]
[1633123217726,0.1913182,3306.9,3306.8,5.08739966]
[1633123217929,0.0083182,3306.9,3306.8,5.08739966]
[1633123218628,0.0083182,3306.9,3306.8,8.0914489]
[1633123219028,0.183,3307.3,3306.8,8.0914489]
[1633123219230,0.183,3307.3,3306.9,0.55308054]
[1633123219427,0.183,3307.3,3307.0,4.85731801]
[1633123219627,0.003,3307.5,3307.0,4.85731801]
[1633123220027,0.003,3307.5,3307.0,3.79673328]
[1633123220226,0.003,3307.5,3307.0,6.81929328]
[1633123221030,0.003,3307.5,3307.2,0.070567]
[1633123221231,0.003,3307.5,3307.3,1.09334413]
[1633123221429,0.003,3308.0,3307.8,1.71509255]
[1633123221935,0.003,3308.0,3307.9,0.81458859]
[1633123222329,0.003,3308.0,3307.9,9.03220943]
[1633123222529,0.003,3308.0,3307.9,6.53126379]
[1633123222735,0.003,3308.0,3307.9,10.81788306]
[1633123222931,0.003,3308.0,3307.9,7.08275055]
[1633123224532,0.003,3308.0,3307.9,9.46782549]
[1633123224731,0.003,3308.0,3307.9,7.08275055]
[1633123225931,0.003,3308.0,3307.9,8.37675055]
[1633123226529,0.003,3308.0,3307.9,7.08275055]
[1633123226730,0.01714901,3308.0,3307.9,6.16716772]
[1633123226930,0.01714901,3308.0,3307.9,6.49157629]
[1633123227136,0.17081924,3309.2,3307.9,6.49157629]
[1633123227330,3.02188,3309.1,3308.5,0.003]
[1633123227531,1.8451812,3309.0,3308.5,0.003]
[1633123227730,1.8451812,3309.0,3308.1,0.003]
[1633123227931,1.8451812,3309.0,3308.0,0.006]
[1633123228531,4.53328,3308.7,3308.0,0.006]
[1633123228733,1.8451992,3308.6,3308.0,0.006]
[1633123229531,0.80726833,3308.6,3308.0,0.006]
[1633123229930,3.20519,3308.7,3308.0,0.006]
[1633123230131,3.20519,3308.7,3308.0,0.068891]
[1633123230132,0.183,3308.7,3308.0,0.068891]
[1633123230531,0.183,3308.7,3308.1,0.003]
[1633123230931,0.183,3308.7,3308.3,0.99422286]
[1633123231132,0.183,3308.7,3308.4,1.00976749]
[1633123231331,0.183,3308.7,3308.4,1.01276749]
[1633123231531,0.183,3308.7,3308.5,0.003]
[1633123231733,3.02188,3309.1,3308.5,0.003]
[1633123231932,3.02188,3309.1,3308.9,0.93110141]
[1633123232338,0.01597852,3309.0,3308.9,0.93110141]
[1633123232534,0.01597852,3309.0,3308.6,0.2764083]
[1633123233535,0.01597852,3309.0,3308.7,3.0212267]
[1633123233836,0.01597852,3309.0,3308.6,1.24581402]
[1633123233837,0.183,3309.2,3309.0,3.00524818]
[1633123235238,0.006,3309.3,3309.0,3.00524818]
[1633123235441,0.006,3309.3,3309.0,3.90436797]
[1633123236241,0.006,3309.3,3309.1,1.07401936]
[1633123237039,0.006,3309.3,3309.1,3.51564292]
[1633123237443,0.006,3309.3,3309.2,2.4159791]
[1633123237640,0.006,3309.3,3309.2,0.28426652]
[1633123238039,0.006,3309.3,3309.2,2.79037788]
[1633123238240,0.006,3309.3,3309.2,3.54750752]
[1633123238839,3.02716,3310.4,3309.2,5.94152165]
[1633123239039,0.006,3310.4,3309.3,0.078842]
[1633123239241,0.006,3310.4,3309.5,1.294]
[1633123239438,0.006,3310.4,3309.7,0.075294]
[1633123240043,0.006,3310.4,3309.7,4.605414]
[1633123240239,0.006,3310.4,3309.7,6.56306272]
[1633123240440,0.006,3310.4,3309.7,5.67955502]
[1633123240841,0.006,3310.4,3309.7,5.74396802]
[1633123241441,0.006,3310.4,3309.7,6.5411755]
[1633123242438,0.006,3310.4,3309.7,6.4767625]
[1633123243038,0.006,3310.4,3309.7,1.9466425]
[1633123243239,0.006,3310.4,3309.7,2.23072889]
[1633123243640,0.006,3310.4,3309.7,1.43352141]
[1633123244442,0.006,3310.4,3309.7,1.49751041]
[1633123244640,0.006,3310.4,3309.7,2.44598581]
[1633123244842,0.006,3310.4,3309.7,1.49751041]
[1633123245249,4.1236204,3309.8,3309.7,1.49751041]
[1633123248699,4.1236204,3309.8,3309.7,1.21342402]
[1633123250099,4.0736204,3309.8,3309.7,1.21342402]
[1633123250699,4.0736204,3309.8,3309.7,1.14943502]
[1633123253108,4.0736204,3309.8,3309.7,1.99977532]
[1633123253904,4.0736204,3309.8,3309.7,2.07175932]
[1633123254304,4.0736204,3309.8,3309.7,2.35584571]
[1633123255708,0.006,3310.1,3309.7,2.35584571]
[1633123256108,0.006,3310.1,3309.8,4.52965]
[1633123256707,0.006,3310.1,3309.8,5.82365]
[1633123256909,0.004,3310.6,3309.8,5.82365]
[1633123257111,0.004,3310.6,3309.9,8.59355429]
[1633123257310,0.004,3310.6,3310.3,0.96038243]
[1633123257712,0.004,3310.6,3310.4,0.77317281]
[1633123258108,0.004,3310.6,3310.0,6.04241]
[1633123258315,0.004,3310.6,3310.3,4.52964]
[1633123259310,0.004,3310.6,3310.5,0.079839]
[1633123259510,0.004,3310.6,3310.4,1.17496619]
[1633123259712,0.004,3310.6,3310.4,1.45882341]
[1633123260114,0.004,3310.6,3310.4,0.28385722]
[1633123262113,0.93917927,3310.6,3310.4,0.28385722]
[1633123263316,0.94324012,3310.6,3310.4,0.28385722]
[1633123264714,5.47332012,3310.6,3310.4,0.28385722]
[1633123265116,5.47332012,3310.6,3310.0,0.003]
[1633123265515,0.94324012,3310.6,3309.9,0.003]
[1633123265717,0.94777186,3310.0,3309.8,0.003]
[1633123265916,0.00806085,3310.6,3309.8,0.003]
[1633123266516,0.00806085,3310.6,3310.1,1.16267068]
[1633123266918,0.9636796,3310.3,3310.1,1.16267068]
[1633123267717,0.9636796,3310.3,3309.8,0.003]
[1633123268520,0.00806085,3310.6,3309.8,3.0228313]
[1633123268920,0.00806085,3310.6,3309.9,0.003]
[1633123269119,0.00806085,3310.6,3310.1,4.52953]
[1633123269320,0.00806085,3310.6,3310.5,0.90022767]
[1633123269720,0.00806085,3310.6,3310.0,6.86231731]
[1633123269920,0.00806085,3310.6,3310.0,6.04219]
[1633123270320,0.00806085,3310.6,3310.3,4.52948]
[1633123270520,0.00806085,3310.6,3310.1,3.0194427]
[1633123270720,0.00806085,3310.6,3310.1,4.41772319]
[1633123270920,0.00806085,3310.6,3310.1,1.39828049]
[1633123271326,0.00806085,3310.6,3310.1,0.28390632]
[1633123271523,0.00806085,3310.6,3310.4,0.078694]
[1633123271723,0.00806085,3310.6,3310.5,1.294]
[1633123272524,0.00806085,3310.6,3310.5,17.78]
[1633123273526,0.00806085,3310.6,3310.5,19.074]
[1633123273931,0.006,3311.1,3310.5,19.074]
[1633123274130,0.015,3312.3,3312.2,16.50107692]
[1633123274329,0.015,3312.3,3312.2,13.45988539]
[1633123274527,0.015,3312.3,3312.2,13.35526301]
[1633123275328,0.99140949,3312.3,3312.2,13.35526301]
[1633123275527,1.77400273,3312.2,3312.0,0.77838057]
[1633123276126,1.77400273,3312.2,3312.1,0.28331741]
[1633123277327,2.6732062,3312.2,3312.1,0.28331741]
[1633123278126,2.6482062,3312.2,3312.1,0.28331741]
[1633123279328,7.1764662,3312.2,3312.1,0.28331741]
[1633123279528,0.77838057,3312.0,3311.2,0.003]
[1633123279729,0.183,3311.9,3311.2,0.003]
[1633123279928,0.183,3311.9,3311.0,0.006]
[1633123280128,0.183,3311.9,3310.8,0.006]
[1633123280527,1.91142952,3311.8,3310.8,0.006]
[1633123280728,1.14065138,3311.3,3310.8,0.006]
[1633123280932,0.183,3311.5,3310.8,0.006]
[1633123281735,0.3260297,3311.5,3310.9,0.14195308]
[1633123281933,0.004845,3311.0,3310.9,0.14195308]
[1633123282234,0.183,3311.0,3310.9,5.308e-05]
[1633123282431,0.183,3311.0,3310.9,0.00605308]
[1633123282630,1.66477829,3311.0,3310.9,0.00605308]
[1633123283433,6.19529829,3311.0,3310.9,0.00605308]
[1633123284229,6.19529829,3311.0,3310.9,0.00695402]
[1633123284434,10.76229829,3311.0,3310.9,0.00695402]
[1633123284830,0.87700794,3309.2,3309.0,0.503]
[1633123285035,2.79522941,3309.1,3309.0,0.503]
[1633123285230,0.183,3309.1,3309.0,0.503]
[1633123285629,1.03781486,3309.1,3309.0,0.503]
[1633123286232,1.03781486,3309.1,3309.0,0.103]
[1633123287039,3.76279184,3309.1,3308.5,0.003]
[1633123287236,0.004845,3308.6,3308.5,0.003]
[1633123287432,0.183,3308.6,3308.2,0.87226756]
[1633123287835,0.183,3308.6,3308.3,0.003]
[1633123288629,0.183,3308.6,3307.8,0.006]
[1633123289229,0.183,3308.6,3308.3,1.05872631]
[1633123289635,0.183,3308.6,3308.4,0.003]
[1633123290231,0.183,3308.6,3307.8,0.006]
[1633123292635,0.21328255,3308.5,3308.0,1.05101846]
[1633123292835,0.39628255,3308.5,3307.9,0.07195894]
[1633123293036,0.39628255,3308.5,3308.1,0.003]
[1633123293235,0.39628255,3308.5,3308.0,0.006]
[1633123294740,0.39628255,3308.5,3308.1,0.00120414]
[1633123294938,3.41898255,3308.5,3308.1,0.00120414]
[1633123295137,3.41898255,3308.5,3308.2,0.003]
[1633123297343,7.95297255,3308.5,3308.2,0.003]
[1633123298141,7.95297255,3308.5,3308.3,0.07190978]
[1633123298339,7.73969,3308.5,3308.3,0.07190978]
[1633123298642,4.567,3308.4,3308.3,0.07190978]
[1633123298839,4.75,3308.4,3308.3,0.07190978]
[1633123299038,4.75,3308.4,3308.3,0.07490978]
[1633123300844,4.75,3308.4,3307.0,0.009]
[1633123301042,4.75,3308.4,3306.8,3.0209233]
[1633123301043,4.535,3307.8,3306.9,0.009]
[1633123301242,0.183,3307.7,3306.9,0.009]
[1633123301643,0.183,3307.7,3306.8,0.89920184]
[1633123301943,0.183,3307.7,3306.9,0.009]
[1633123302346,0.183,3307.7,3306.8,0.009]
[1633123302542,0.183,3307.7,3307.2,1.294]
[1633123302743,0.183,3307.7,3307.4,0.94495601]
[1633123302942,0.183,3307.7,3307.5,0.91817877]
[1633123303142,0.183,3307.7,3307.5,0.006]
[1633123303342,0.183,3307.7,3307.6,0.003]
[1633123303742,0.43210485,3307.7,3307.5,0.006]
[1633123303941,0.43710485,3307.7,3306.8,2.53616149]
[1633123304143,1.11987354,3307.5,3306.8,0.009]
[1633123304343,0.183,3307.4,3306.9,0.8219482]
[1633123304805,0.183,3307.4,3307.0,0.009]
[1633123305145,0.183,3307.4,3307.1,0.00123788]
[1633123305545,0.183,3307.4,3307.2,0.006]
[1633123305747,0.183,3307.4,3307.3,0.89955923]
[1633123305948,0.43710485,3307.7,3307.2,0.006]
[1633123306147,0.43710485,3307.7,3307.3,0.006]
[1633123306747,4.97205485,3307.7,3307.3,0.006]
[1633123306952,4.96842707,3307.7,3307.3,0.006]
[1633123307948,0.43347707,3307.7,3307.3,0.006]
[1633123308547,0.43347707,3307.7,3307.6,1.03833263]
[1633123308948,0.43347707,3307.7,3307.6,1.04133263]
[1633123309150,0.188,3307.7,3307.6,1.04133263]
[1633123312353,33.7207,3308.7,3308.6,0.97248836]
[1633123312553,11.4127,3308.7,3307.8,3.07892399]
[1633123312756,11.4127,3308.7,3307.8,0.003]
[1633123312953,11.4127,3308.7,3307.9,0.003]
[1633123313152,11.4127,3308.7,3307.6,0.065832]
[1633123313153,11.4127,3308.7,3307.7,0.003]
[1633123313457,1.16124186,3307.9,3307.7,0.003]
[1633123313652,1.47516033,3308.4,3307.7,0.003]
[1633123313653,0.183,3307.8,3307.7,0.003]
[1633123313852,0.183,3307.8,3307.5,0.006]
[1633123314052,0.183,3307.8,3307.3,0.006]
[1633123314453,0.183,3307.8,3307.3,4.53974]
[1633123314651,0.183,3307.8,3307.5,1.294]
[1633123314853,0.24726708,3307.7,3307.6,0.068839]
[1633123315052,0.24726708,3307.7,3307.6,0.071839]
[1633123315855,0.24726708,3307.7,3307.6,1.365839]
[1633123316253,0.24726708,3307.7,3307.6,7.409539]
[1633123316654,0.24726708,3307.7,3307.6,10.4315215]
[1633123317655,0.183,3308.1,3307.6,10.4315215]
[1633123317860,0.183,3308.1,3307.8,1.294]
[1633123318062,0.183,3308.5,3307.7,0.003]
[1633123318255,0.183,3308.5,3307.9,0.003]
[1633123318456,0.183,3308.5,3308.2,0.74464043]
[1633123318654,0.183,3308.5,3308.3,5.40110504]
[1633123320117,0.186,3309.0,3308.3,5.40110504]
[1633123320317,0.12385109,3308.5,3308.4,0.16136955]
[1633123320522,0.12385109,3308.5,3308.4,1.45536955]
[1633123321118,0.12385109,3308.5,3308.4,7.49758955]
[1633123323922,0.12385109,3308.5,3308.4,6.20358955]
[1633123324924,0.12385109,3308.5,3308.4,0.16136955]
[1633123325728,0.186,3309.0,3308.6,3.0211062]
[1633123326325,0.186,3309.0,3308.7,0.00099417]
[1633123329329,0.003,3309.0,3308.8,4.53165]
[1633123330731,0.003,3309.5,3309.2,2.63402382]
[1633123330937,0.003,3309.5,3309.3,2.61291557]
[1633123331133,0.003,3310.0,3309.4,19.09931453]
[1633123331332,0.003,3310.0,3309.9,0.10556796]
[1633123331531,0.003,3311.0,3310.0,1.81954308]
[1633123331732,0.003,3311.0,3310.9,0.079913]
[1633123331932,0.003,3311.0,3310.9,2.47625741]
[1633123332129,0.003,3311.0,3310.9,0.97625741]
[1633123332331,0.003,3311.0,3310.9,4.89545614]
[1633123332532,0.003,3311.5,3311.1,1.51024899]
[1633123332731,0.003,3311.5,3311.3,4.5272]
[1633123332930,0.003,3311.5,3311.4,0.74208123]
[1633123333331,0.003,3311.5,3311.4,2.03608123]
[1633123333732,0.003,3311.5,3311.4,0.74208123]
[1633123333931,0.003,3311.5,3311.4,6.77861123]
[1633123336531,0.003,3311.5,3311.4,6.03653]
[1633123336730,0.12758742,3311.5,3311.4,6.03653]
[1633123337131,0.12758742,3311.5,3311.3,9.0547382]
[1633123337532,0.12758742,3311.5,3311.3,9.9695953]
[1633123338533,0.12758742,3311.5,3311.3,3.9330353]
[1633123339334,0.12758742,3311.5,3311.3,3.0181782]
[1633123339735,0.12758742,3311.5,3310.6,3.0186664]
[1633123340335,0.12758742,3311.5,3311.2,1.11153678]
[1633123340535,0.12758742,3311.5,3311.1,0.73471111]
[1633123340937,0.12758742,3311.5,3310.9,4.52822]
[1633123341341,0.12758742,3311.5,3310.6,3.2016664]
[1633123341535,0.12758742,3311.5,3311.0,3.0188076]
[1633123341735,0.12758742,3311.5,3311.0,3.91496129]
[1633123341935,1.62758742,3311.5,3311.0,3.0188076]
[1633123342135,1.503,3311.5,3311.0,3.0188076]
[1633123342334,1.503,3311.5,3311.1,0.16043636]
[1633123343536,0.90097563,3311.4,3311.1,0.16043636]
[1633123343940,1.503,3311.5,3311.1,0.16043636]
[1633123345337,1.00494776,3311.4,3311.1,0.16043636]
[1633123345944,4.71262,3311.3,3311.1,0.16043636]
[1633123346140,1.01772132,3310.6,3310.0,0.003]
[1633123346342,1.01772132,3310.6,3310.0,0.006]
[1633123346547,1.01772132,3310.6,3309.8,0.006]
[1633123346740,1.01772132,3310.6,3309.5,0.84152604]
[1633123346741,0.76519183,3310.3,3309.5,0.84152604]
[1633123347141,0.76519183,3310.3,3309.6,0.006]
[1633123347142,5.29615183,3310.3,3309.6,0.006]
[1633123347541,5.29615183,3310.3,3309.3,0.009]
[1633123347740,0.20443206,3310.2,3309.7,0.08066002]
[1633123347943,0.93559627,3310.1,3309.7,0.08066002]
[1633123348144,0.20443206,3310.2,3309.8,0.006]
[1633123348941,3.22512206,3310.2,3309.8,0.006]
[1633123349341,4.53115,3310.1,3309.8,0.006]
[1633123350141,3.22512206,3310.2,3309.9,0.72180962]
[1633123350540,3.22512206,3310.2,3309.8,0.006]
[1633123350541,3.22512206,3310.2,3310.0,0.006]
[1633123350941,3.22512206,3310.2,3309.8,0.006]
[1633123351746,3.22512206,3310.2,3309.9,0.74951847]
[1633123351943,3.22512206,3310.2,3309.8,0.006]
[1633123352142,3.22512206,3310.2,3310.0,0.006]
[1633123352542,0.20443206,3310.2,3310.0,0.006]
[1633123353142,0.20443206,3310.2,3310.1,0.08061091]
[1633123353343,4.53057,3310.5,3310.1,0.08061091]
[1633123353544,1.5,3310.2,3310.1,0.08361091]
[1633123353742,1.5,3310.2,3310.1,0.08061091]
[1633123353942,1.5,3310.2,3310.1,0.08361091]
[1633123357246,2.42458832,3310.2,3310.1,0.08361091]
[1633123357645,1.5,3310.2,3310.1,0.08361091]
[1633123358849,1.7044806,3310.2,3310.1,0.003]
[1633123359250,1.7044806,3310.2,3309.8,0.006]
[1633123359851,1.7044806,3310.2,3309.8,0.72488684]
[1633123360250,1.7044806,3310.2,3309.9,0.006]
[1633123360862,1.7044806,3310.2,3309.9,4.53582]
[1633123361254,1.7044806,3310.2,3310.0,0.006]
[1633123361651,1.7044806,3310.2,3310.1,1.14341533]
[1633123362058,1.7044806,3310.2,3310.1,8.56019188]
[1633123362452,1.7044806,3310.2,3310.1,7.05011388]
[1633123362856,1.7044806,3310.2,3310.1,5.45973733]
[1633123364256,1.5,3310.2,3310.1,6.83433187]
[1633123364458,1.5,3310.2,3310.1,5.54033187]
[1633123365456,1.5,3310.2,3310.1,6.83433187]
[1633123366057,1.5,3310.2,3310.1,8.44043187]
[1633123366456,1.5,3310.2,3310.1,8.62343187]
[1633123368257,1.5,3310.2,3310.1,8.57343187]
[1633123368857,1.5,3310.2,3310.1,7.27943187]
[1633123369864,1.70448088,3310.2,3310.1,7.19883733]
[1633123370915,1.70448088,3310.2,3310.1,6.1385]
[1633123371115,1.70448088,3310.2,3310.1,4.5324]
[1633123372116,1.70448088,3310.2,3310.1,5.70782763]
[1633123375328,1.5,3310.2,3310.1,5.78842217]
[1633123376732,1.5,3310.2,3310.1,0.08359454]
[1633123377741,2.66591756,3310.2,3310.1,0.08359454]
[1633123378530,1.5,3310.2,3310.1,0.08359454]
[1633123380130,2.40732145,3310.2,3310.1,0.08359454]
[1633123380335,1.5,3310.2,3310.1,0.08359454]
[1633123380729,1.5,3310.2,3310.1,0.003]
[1633123380929,1.70448115,3310.2,3310.1,0.003]
[1633123381129,1.70448115,3310.2,3309.6,0.006]
[1633123381331,2.62720926,3310.2,3309.6,0.006]
[1633123381730,2.62720926,3310.2,3309.8,0.86140254]
[1633123381731,1.70448115,3310.2,3309.8,0.86140254]
[1633123382131,1.70448115,3310.2,3309.9,0.006]
[1633123383334,1.70448115,3310.2,3309.7,4.53018]
[1633123383734,1.70448115,3310.2,3309.8,0.006]
[1633123384135,1.70448115,3310.2,3309.9,1.18474887]
[1633123384535,1.70448115,3310.2,3310.0,0.006]
[1633123384737,6.03987,3311.3,3310.5,3.7493514]
[1633123384938,3.02298,3311.5,3310.6,2.74988039]
[1633123385139,3.75343573,3311.5,3310.7,1.89877552]
[1633123385339,0.73345573,3311.5,3310.7,1.89877552]
[1633123385539,0.73345573,3311.5,3310.7,0.83299154]
[1633123385737,3.0224,3311.5,3310.7,0.83299154]
[1633123386135,7.55139,3311.5,3310.7,5.36185154]
[1633123386336,0.10246985,3311.4,3310.8,0.18252419]
[1633123386538,1.06835599,3311.3,3310.8,1.22479518]
[1633123386937,1.06835599,3311.3,3310.8,0.18252419]
[1633123387138,0.10246985,3311.4,3310.8,0.18252419]
[1633123387638,0.10246985,3311.4,3310.8,1.48342419]
[1633123388240,0.10246985,3311.4,3310.9,4.52887]
[1633123389239,1.04784457,3311.4,3310.9,4.52887]
[1633123389639,0.10246985,3311.4,3310.9,4.52887]
[1633123390441,0.10246985,3311.4,3310.9,7.54803]
[1633123390644,0.10246985,3311.4,3310.9,3.01916]
[1633123391441,0.91507049,3311.1,3310.9,3.01916]
[1633123391839,0.91507049,3311.1,3311.0,0.18250783]
[1633123393643,2.41507049,3311.1,3311.0,0.18250783]
[1633123393843,1.5,3311.1,3311.0,0.18250783]
[1633123397244,1.60247013,3311.1,3310.8,3.94587601]
[1633123398243,1.60247013,3311.1,3310.8,8.47473601]
[1633123399643,1.60247013,3311.1,3310.9,4.52876]
[1633123401247,1.60247013,3311.1,3310.8,8.47475601]
[1633123401646,0.03182384,3311.0,3310.8,7.54809]
[1633123402044,0.03182384,3311.0,3310.8,3.01921]
[1633123402647,0.03182384,3311.0,3310.9,1.17312744]
[1633123402848,0.03182384,3311.0,3310.9,1.35571707]
[1633123404445,0.03182384,3311.0,3310.9,0.18258963]
[1633123405446,0.03182384,3311.0,3310.9,1.23941141]
[1633123406352,0.03182384,3311.0,3310.9,0.73941141]
[1633123407153,0.03182384,3311.0,3310.9,1.31274761]
[1633123408349,0.22555289,3311.0,3310.9,1.40402607]
[1633123411153,0.19372905,3311.0,3310.9,1.40402607]
[1633123411755,0.19372905,3311.0,3310.9,1.30402607]
[1633123413956,0.19372905,3311.0,3310.9,1.21274761]
[1633123414161,0.20435043,3311.0,3310.9,1.21274761]
[1633123415360,0.20435043,3311.0,3310.9,2.55704761]
[1633123416357,0.20435043,3311.0,3310.9,7.08547761]
[1633123418359,0.20435043,3311.0,3310.9,6.4460662]
[1633123418563,0.20435043,3311.0,3310.9,5.1017662]
[1633123418960,0.01062138,3311.0,3310.9,5.1017662]
[1633123419162,0.01062138,3311.0,3310.9,5.19304466]
[1633123419366,0.20435071,3311.0,3310.9,6.25050192]
[1633123419560,0.20435071,3311.0,3310.9,5.19304466]
[1633123420360,0.20435071,3311.0,3310.9,0.66461466]
[1633123420963,1.13548435,3311.0,3310.9,0.66461466]
[1633123421161,0.20435071,3311.0,3310.9,0.66461466]
[1633123423363,0.20435071,3311.0,3310.9,0.66300623]
[1633123424163,0.20435071,3311.0,3310.9,0.09127846]
[1633123424363,0.20435071,3311.0,3310.9,0.08127846]